Workbook

Sheet Avg Gain RDF DMF
A1: ZENITH(DEG) | B1: AZIMUTH(DEG) | C1: VERT(dBi) | D1: HORI(dBi) | E1: TOTAL(dBi) | F1: Pwr | G1: Th1 | H1: Th2 | I1: dA(sr) | J1: Pwr*dA | K1: BH Pwr | L1: LI dA(sr) | Q1: Source Type
A2: 0 | B2: 0 | C2: -75.71 | D2: -104.36 | E2: -75.71 | F2: =10 ^ (E2 / 10) -> 2.685344446e-08 | G2: =IF(A2 = 0, 0, A2 - StepSize/2) -> 0 | H2: =IF(A2 = EndTheta, EndTheta, A2 + StepSize/2) -> 0.5 | I2: =RADIANS(IF(OR(B2 = 0, B2 = 360), StepSize/2, StepSize)) * (COS(RADIANS(G2)) - COS(RADIANS(H2))) -> 3.322839496e-07 | J2: =F2 * I2 -> 8.922968585e-15 | K2: =IF(BH_BegAz < BH_EndAz, IF(AND(B2 >= BH_BegAz, B2 <= BH_EndAz), F2, 0), IF(OR(B2 >= BH_BegAz, B2 <= BH_EndAz), F2, 0)) * RADIANS(IF(OR(B2 = BH_BegAz, B2 = BH_EndAz), StepSize/2, StepSize)) * (COS(RADIANS(G2)) - COS(RADIANS(H2))) -> 0 | L2: =IF(AND(B2 >= LI_BegAz, B2 <= LI_EndAz), RADIANS(IF(OR(B2 = LI_BegAz, B2 = LI_EndAz), StepSize/2, StepSize)) * (COS(RADIANS(G2)) - COS(RADIANS(H2))), 0) -> 0
A3: 1 | B3: 0 | C3: -64.2 | D3: -103.58 | E3: -64.2 | F3: =10 ^ (E3 / 10) -> 3.801893963e-07 | G3: 0.5 | H3: 1.5 | I3: =RADIANS(IF(OR(B3 = 0, B3 = 360), StepSize/2, StepSize)) * (COS(RADIANS(G3)) - COS(RADIANS(H3))) -> 2.658119771e-06 | J3: =F3 * I3 -> 1.010588951e-12 | K3: 0 | L3: 0 | N3: User input
A4: 2 | B4: 0 | C4: -59.14 | D4: -102.02 | E4: -59.14 | F4: 1.218989599e-06 | G4: 1.5 | H4: 2.5 | I4: 5.315429853e-06 | J4: 6.479453704e-12 | K4: 0 | L4: 0 | N4: 1 | O4: Step size, deg | Q4: (Make changes to
A5: 3 | B5: 0 | C5: -55.83 | D5: -100.29 | E5: -55.83 | F5: 2.612161354e-06 | G5: 2.5 | H5: 3.5 | I5: 7.971120803e-06 | J5: 2.082185371e-11 | K5: 0 | L5: 0 | N5: FALSE | O5: Free space ? | Q5: these two cells only.)
A6: 4 | B6: 0 | C6: -53.36 | D6: -98.7 | E6: -53.36 | F6: 4.613175746e-06 | G6: 3.5 | H6: 4.5 | I6: 1.062438367e-05 | J6: 4.901214907e-11 | K6: 0 | L6: 0 | N6: =IF(90 / StepSize = INT(90 / StepSize), IF(TotSteps > (ROWS(A:A) - 1), "Total steps too large for this version of Excel.", ""), "Invalid step size, must be a divisor of 90.") -> 
A7: 5 | B7: 0 | C7: -51.4 | D7: -97.3 | E7: -51.4 | F7: 7.244359601e-06 | G7: 4.5 | H7: 5.5 | I7: 1.327441025e-05 | J7: 9.616460135e-11 | K7: 0 | L7: 0 | N7: 1) Set the values above as desired.
A8: 6 | B8: 0 | C8: -49.78 | D8: -96.1 | E8: -49.78 | F8: 1.051961874e-05 | G8: 5.5 | H8: 6.5 | I8: 1.592039332e-05 | J8: 1.674764679e-10 | K8: 0 | L8: 0 | N8: 2) In MMANA, click File > Table of Angle/Gain then use
A9: 7 | B9: 0 | C9: -48.42 | D9: -95.09 | E9: -48.42 | F9: 1.438798578e-05 | G9: 6.5 | H9: 7.5 | I9: 1.856152688e-05 | J9: 2.670629848e-10 | K9: 0 | L9: 0 | N9: these parameters in the dialog window (not here).
A10: 8 | B10: 0 | C10: -47.26 | D10: -94.24 | E10: -47.26 | F10: 1.879316817e-05 | G10: 7.5 | H10: 8.5 | I10: 2.119700642e-05 | J10: 3.983589062e-10 | K10: 0 | L10: 0 | O10: Start | P10: Step | Q10: Num
A11: 9 | B11: 0 | C11: -46.27 | D11: -93.54 | E11: -46.27 | F11: 2.360478233e-05 | G11: 8.5 | H11: 9.5 | I11: 2.382602914e-05 | J11: 5.624082317e-10 | K11: 0 | L11: 0 | N11: Azimuth | O11: 0 | P11: =StepSize -> 1 | Q11: =360 / StepSize + 1 -> 361 | R11: Total
A12: 10 | B12: 0 | C12: -45.42 | D12: -92.96 | E12: -45.42 | F12: 2.870780582e-05 | G12: 9.5 | H12: 10.5 | I12: 2.644779423e-05 | J12: 7.59258141e-10 | K12: 0 | L12: 0 | N12: Zenith | O12: 0 | P12: =StepSize -> 1 | Q12: =IF(FreeSpace = TRUE, 180, 90) / StepSize + 1 -> 91 | R12: =Q11 * Q12 -> 32851
A13: 11 | B13: 0 | C13: -44.7 | D13: -92.51 | E13: -44.7 | F13: 3.388441561e-05 | G13: 10.5 | H13: 11.5 | I13: 2.906150306e-05 | J13: 9.84732048e-10 | K13: 0 | L13: 0 | N13: 3) Click this button to copy the file data into columns A-E.
A14: 12 | B14: 0 | C14: -44.1 | D14: -92.17 | E14: -44.1 | F14: 3.89045145e-05 | G14: 11.5 | H14: 12.5 | I14: 3.166635947e-05 | J14: 1.231964341e-09 | K14: 0 | L14: 0
A15: 13 | B15: 0 | C15: -43.61 | D15: -91.94 | E15: -43.61 | F15: 4.355118737e-05 | G15: 12.5 | H15: 13.5 | I15: 3.426157001e-05 | J15: 1.492132055e-09 | K15: 0 | L15: 0
A16: 14 | B16: 0 | C16: -43.22 | D16: -91.82 | E16: -43.22 | F16: 4.764309868e-05 | G16: 13.5 | H16: 14.5 | I16: 3.684634414e-05 | J16: 1.75547401e-09 | K16: 0 | L16: 0
A17: 15 | B17: 0 | C17: -42.94 | D17: -91.82 | E17: -42.94 | F17: 5.081594426e-05 | G17: 14.5 | H17: 15.5 | I17: 3.941989452e-05 | J17: 2.003159162e-09 | K17: 0 | L17: 0 | N17: 13 4x LIRA L216 v2.csv
A18: 16 | B18: 0 | C18: -42.77 | D18: -91.93 | E18: -42.77 | F18: 5.284452518e-05 | G18: 15.5 | H18: 16.5 | I18: 4.198143721e-05 | J18: 2.218489116e-09 | K18: 0 | L18: 0 | N18: =IF(FileName <> "", IF(OR(N29 = 1, N29 = 2), "", N39 & " mismatch with the file data in columns A-E."), "") -> 
A19: 17 | B19: 0 | C19: -42.71 | D19: -92.18 | E19: -42.71 | F19: 5.357966575e-05 | G19: 16.5 | H19: 17.5 | I19: 4.453019196e-05 | J19: 2.385912801e-09 | K19: 0 | L19: 0 | N19: =IF(FileName <> "", MAX(E:E), "") -> -18.31 | O19: Max 3D Gain, dBi | Q19: =" (at Az = " & MaxAtAzim & "°, El = " & 90 - MaxAtZen & "°)" -> (at Az = 0°, El = 19°)
A20: 18 | B20: 0 | C20: -42.77 | D20: -92.57 | E20: -42.77 | F20: 5.284452518e-05 | G20: 17.5 | H20: 18.5 | I20: 4.706538237e-05 | J20: 2.487147784e-09 | K20: 0 | L20: 0 | N20: =IF(FileName <> "", IF(Mismatch = "", 10 *LOG10(N31), NA()), "") -> -33.13954891 | O20: Avg Gain, dB
A21: 19 | B21: 0 | C21: -42.97 | D21: -93.13 | E21: -42.97 | F21: 5.046612976e-05 | G21: 18.5 | H21: 19.5 | I21: 4.958623621e-05 | J21: 2.502425431e-09 | K21: 0 | L21: 0 | N21: =IF(FileName <> "", IF(Mismatch = "", N19 - N20, NA()), "") -> 14.82954891 | O21: RDF, dB (Max - Avg)
A22: 20 | B22: 0 | C22: -43.32 | D22: -93.9 | E22: -43.32 | F22: 4.655860935e-05 | G22: 19.5 | H22: 20.5 | I22: 5.209198561e-05 | J22: 2.425330408e-09 | K22: 0 | L22: 0 | N22: RDF: Receiving Directivity Factor
A23: 21 | B23: 0 | C23: -43.86 | D23: -94.93 | E23: -43.86 | F23: 4.111497211e-05 | G23: 20.5 | H23: 21.5 | I23: 5.458186728e-05 | J23: 2.244131951e-09 | K23: 0 | L23: 0
A24: 22 | B24: 0 | C24: -44.64 | D24: -96.33 | E24: -44.64 | F24: 3.435579479e-05 | G24: 21.5 | H24: 22.5 | I24: 5.705512279e-05 | J24: 1.96017409e-09 | K24: 0 | L24: 0 | N24: =IF(FileName <> "", IF(Mismatch = "", 10 *LOG10(N33), NA()), "") -> -55.92773131 | O24: Back Half Avg Gain, dB
A25: 23 | B25: 0 | C25: -45.72 | D25: -98.26 | E25: -45.72 | F25: 2.679168325e-05 | G25: 22.5 | H25: 23.5 | I25: 5.951099875e-05 | J25: 1.594399828e-09 | K25: 0 | L25: 0 | N25: =IF(FileName <> "", IF(Mismatch = "", N19 - N24, NA()), "") -> 37.61773131 | O25: DMF, dB (Max - Back Half Avg)
A26: 24 | B26: 0 | C26: -47.25 | D26: -101.11 | E26: -47.25 | F26: 1.883649089e-05 | G26: 23.5 | H26: 24.5 | I26: 6.194874709e-05 | J26: 1.16689701e-09 | K26: 0 | L26: 0 | N26: DMF: Directivity Merit Figure
A27: 25 | B27: 0 | C27: -49.49 | D27: -106 | E27: -49.49 | F27: 1.124604974e-05 | G27: 24.5 | H27: 25.5 | I27: 6.436762524e-05 | J27: 7.23881515e-10 | K27: 0 | L27: 0
A28: 26 | B28: 0 | C28: -53.11 | D28: -120.17 | E28: -53.11 | F28: 4.886523593e-06 | G28: 25.5 | H28: 26.5 | I28: 6.676689638e-05 | J28: 3.262580144e-10 | K28: 0 | L28: 0 | N28: ----- Working variables and notes -----
A29: 27 | B29: 0 | C29: -60.72 | D29: -108.56 | E29: -60.72 | F29: 8.472274141e-07 | G29: 26.5 | H29: 27.5 | I29: 6.914582969e-05 | J29: 5.858224248e-11 | K29: 0 | L29: 0 | N29: =ROUND(SUM(I:I) / (2*PI()), 10) -> 1 | O29: Sum(dA) / 2pi (check)
A30: 28 | B30: 0 | C30: -64.21 | D30: -101.37 | E30: -64.21 | F30: 3.79314985e-07 | G30: 27.5 | H30: 28.5 | I30: 7.15037005e-05 | J30: 2.712242508e-11 | K30: 0 | L30: 0 | N30: =SUM(J:J) -> 0.006098948595 | O30: Sum(Pwr*dA)
A31: 29 | B31: 0 | C31: -53.06 | D31: -97.28 | E31: -53.06 | F31: 4.94310687e-06 | G31: 28.5 | H31: 29.5 | I31: 7.383979059e-05 | J31: 3.649979761e-10 | K31: 0 | L31: 0 | N31: =N30 / (4 * PI()) -> 0.0004853389083 | O31: =" Avg Gain, ratio (" & FIXED(N31, 4 - (1 + INT(LOG10(ABS(N31)))), TRUE) & ")" -> Avg Gain, ratio (0.0004853)
A32: 30 | B32: 0 | C32: -47.92 | D32: -94.38 | E32: -47.92 | F32: 1.614358557e-05 | G32: 29.5 | H32: 30.5 | I32: 7.615338837e-05 | J32: 1.229388741e-09 | K32: 0 | L32: 0 | N32: =SUM(K:K) -> 1.60474761e-05 | O32: Sum(Back Half Pwr*dA)
A33: 31 | B33: 0 | C33: -44.47 | D33: -92.12 | E33: -44.47 | F33: 3.572728382e-05 | G33: 30.5 | H33: 31.5 | I33: 7.844378909e-05 | J33: 2.802583516e-09 | K33: 0 | L33: 0 | N33: =N32 / (2 * PI()) -> 2.554035145e-06 | O33: =" Back Half Avg Gain, ratio (" & FIXED(N33, 4 - (1 + INT(LOG10(ABS(N33)))), TRUE) & ")" -> Back Half Avg Gain, ratio (0.000002554)
A34: 32 | B34: 0 | C34: -41.82 | D34: -90.26 | E34: -41.82 | F34: 6.576578374e-05 | G34: 31.5 | H34: 32.5 | I34: 8.071029507e-05 | J34: 5.307975811e-09 | K34: 0 | L34: 0 | N34: =IF(FreeSpace = TRUE, 180, 90) -> 90 | O34: End Theta (Zenith) angle
A35: 33 | B35: 0 | C35: -39.66 | D35: -88.69 | E35: -39.66 | F35: 0.0001081433951 | G35: 32.5 | H35: 33.5 | I35: 8.295221591e-05 | J35: 8.970734262e-09 | K35: 0 | L35: 0 | N35: 0 | O35: Max 3D dBi at azimuth (set by macro)
A36: 34 | B36: 0 | C36: -37.83 | D36: -87.32 | E36: -37.83 | F36: 0.0001648162392 | G36: 33.5 | H36: 34.5 | I36: 8.51688687e-05 | J36: 1.403721263e-08 | K36: 0 | L36: 0 | N36: 71 | O36: Max 3D dBi at zenith (set by macro)
A37: 35 | B37: 0 | C37: -36.23 | D37: -86.11 | E37: -36.23 | F37: 0.0002382319469 | G37: 34.5 | H37: 35.5 | I37: 8.735957823e-05 | J37: 2.081184241e-08 | K37: 0 | L37: 0 | N37: =IF(N35+90 <= 360, N35+90, N35+90-360) -> 90 | O37: Back Half begins at azimuth
A38: 36 | B38: 0 | C38: -34.81 | D38: -85.04 | E38: -34.81 | F38: 0.000330369541 | G38: 35.5 | H38: 36.5 | I38: 8.952367719e-05 | J38: 2.957589615e-08 | K38: 0 | L38: 0 | N38: =IF(N35-90 > 0, N35-90, N35-90+360) -> 270 | O38: Back Half ends at azimuth
A39: 37 | B39: 0 | C39: -33.53 | D39: -84.07 | E39: -33.53 | F39: 0.0004436086439 | G39: 36.5 | H39: 37.5 | I39: 9.166050637e-05 | J39: 4.066139293e-08 | K39: 0 | L39: 0 | N39: =IF(AND(A3 <> StepSize, MAX(A:A) <> EndTheta), "Step size and Free space", IF(A3 <> StepSize, "Step size", IF(MAX(A:A) <> EndTheta, "Free space", "none"))) -> none | O39: Type mismatch with file data
A40: 38 | B40: 0 | C40: -32.36 | D40: -83.2 | E40: -32.36 | F40: 0.0005807644175 | G40: 37.5 | H40: 38.5 | I40: 9.376941487e-05 | J40: 5.445793961e-08 | K40: 0 | L40: 0 | N40: 1 | O40: Source Type (set by macro)
A41: 39 | B41: 0 | C41: -31.3 | D41: -82.4 | E41: -31.3 | F41: 0.0007413102413 | G41: 38.5 | H41: 39.5 | I41: 9.58497603e-05 | J41: 7.105440893e-08 | K41: 0 | L41: 0
A42: 40 | B42: 0 | C42: -30.31 | D42: -81.68 | E42: -30.31 | F42: 0.0009311078755 | G42: 39.5 | H42: 40.5 | I42: 9.790090896e-05 | J42: 9.115630735e-08 | K42: 0 | L42: 0 | N42: Formula for dA(sr) [delta solid angle, steradians]:
A43: 41 | B43: 0 | C43: -29.4 | D43: -81.01 | E43: -29.4 | F43: 0.001148153621 | G43: 40.5 | H43: 41.5 | I43: 9.992223606e-05 | J43: 1.147260772e-07 | K43: 0 | L43: 0 | N43: dA = delta azimuth * (cos(theta1) - cos(theta2))
A44: 42 | B44: 0 | C44: -28.56 | D44: -80.41 | E44: -28.56 | F44: 0.001393156803 | G44: 41.5 | H44: 42.5 | I44: 0.0001019131259 | J44: 1.419809646e-07 | K44: 0 | L44: 0 | N44: See "Finite Solid Angle in spherical coordinates" here:
A45: 43 | B45: 0 | C45: -27.77 | D45: -79.85 | E45: -27.77 | F45: 0.001671090614 | G45: 42.5 | H45: 43.5 | I45: 0.000103872972 | J45: 1.735811485e-07 | K45: 0 | L45: 0 | N45: https://www.et.byu.edu/~vps/ME340/TABLES/12.0.pdf
A46: 44 | B46: 0 | C46: -27.03 | D46: -79.34 | E46: -27.03 | F46: 0.001981527026 | G46: 43.5 | H46: 44.5 | I46: 0.0001058011773 | J46: 2.096478923e-07 | K46: 0 | L46: 0
A47: 45 | B47: 0 | C47: -26.34 | D47: -78.87 | E47: -26.34 | F47: 0.002322736796 | G47: 44.5 | H47: 45.5 | I47: 0.0001076971547 | J47: 2.50152144e-07 | K47: 0 | L47: 0 | N47: Alternative derivation:
A48: 46 | B48: 0 | C48: -25.69 | D48: -78.45 | E48: -25.69 | F48: 0.002697739432 | G48: 45.5 | H48: 46.5 | I48: 0.0001095603264 | J48: 2.955652127e-07 | K48: 0 | L48: 0 | N48: Convert from spherical coordinates to cylindrical coordinates.
A49: 47 | B49: 0 | C49: -25.08 | D49: -78.06 | E49: -25.08 | F49: 0.003104559588 | G49: 46.5 | H49: 47.5 | I49: 0.0001113901249 | J49: 3.458172804e-07 | K49: 0 | L49: 0 | N49: Cylindrical coordinate height = radius * cos(theta), radius = 1.
A50: 48 | B50: 0 | C50: -24.51 | D50: -77.7 | E50: -24.51 | F50: 0.003539973411 | G50: 47.5 | H50: 48.5 | I50: 0.000113185993 | J50: 4.006754058e-07 | K50: 0 | L50: 0 | N50: Delta surface area on cylinder
A51: 49 | B51: 0 | C51: -23.97 | D51: -77.38 | E51: -23.97 | F51: 0.004008667176 | G51: 48.5 | H51: 49.5 | I51: 0.0001149473835 | J51: 4.607858034e-07 | K51: 0 | L51: 0 | N51: = delta azimuth * delta height
A52: 50 | B52: 0 | C52: -23.46 | D52: -77.09 | E52: -23.46 | F52: 0.004508167045 | G52: 49.5 | H52: 50.5 | I52: 0.00011667376 | J52: 5.259847998e-07 | K52: 0 | L52: 0 | N52: = delta azimuth * (cos(theta1) - cos(theta2))
A53: 51 | B53: 0 | C53: -22.99 | D53: -76.83 | E53: -22.99 | F53: 0.005023425895 | G53: 50.5 | H53: 51.5 | I53: 0.0001183645964 | J53: 5.945957789e-07 | K53: 0 | L53: 0 | N53: See "Coordinate system conversions" and "Line and volume elements" here:
A54: 52 | B54: 0 | C54: -22.54 | D54: -76.6 | E54: -22.54 | F54: =10 ^ (E54 / 10) -> 0.005571857489 | G54: =IF(A54 = 0, 0, A54 - StepSize/2) -> 51.5 | H54: =IF(A54 = EndTheta, EndTheta, A54 + StepSize/2) -> 52.5 | I54: =RADIANS(IF(OR(B54 = 0, B54 = 360), StepSize/2, StepSize)) * (COS(RADIANS(G54)) - COS(RADIANS(H54))) -> 0.0001200193779 | J54: =F54 * I54 -> 6.687308697e-07 | K54: =IF(BH_BegAz < BH_EndAz, IF(AND(B54 >= BH_BegAz, B54 <= BH_EndAz), F54, 0), IF(OR(B54 >= BH_BegAz, B54 <= BH_EndAz), F54, 0)) * RADIANS(IF(OR(B54 = BH_BegAz, B54 = BH_EndAz), StepSize/2, StepSize)) * (COS(RADIANS(G54)) - COS(RADIANS(H54))) -> 0 | L54: =IF(AND(B54 >= LI_BegAz, B54 <= LI_EndAz), RADIANS(IF(OR(B54 = LI_BegAz, B54 = LI_EndAz), StepSize/2, StepSize)) * (COS(RADIANS(G54)) - COS(RADIANS(H54))), 0) -> 0 | N54: https://en.wikipedia.org/wiki/Cylindrical_coordinate_system
A55: 53 | B55: 0 | C55: -22.12 | D55: -76.4 | E55: -22.12 | F55: 0.006137620052 | G55: 52.5 | H55: 53.5 | I55: 0.0001216376003 | J55: 7.465653748e-07 | K55: 0 | L55: 0
A56: 54 | B56: 0 | C56: -21.72 | D56: -76.22 | E56: -21.72 | F56: 0.006729766563 | G56: 53.5 | H56: 54.5 | I56: 0.0001232187707 | J56: 8.292335632e-07 | K56: 0 | L56: 0 | N56: Note that azimuth angles 0 and 360 are both used.
A57: 55 | B57: 0 | C57: -21.35 | D57: -76.07 | E57: -21.35 | F57: 0.007328245331 | G57: 54.5 | H57: 55.5 | I57: 0.0001247624075 | J57: 9.142895305e-07 | K57: 0 | L57: 0 | N57: However, for these two azimuth angles the value
A58: 56 | B58: 0 | C58: -21 | D58: -75.95 | E58: -21 | F58: 0.007943282347 | G58: 55.5 | H58: 56.5 | I58: 0.0001262680405 | J58: 1.002982697e-06 | K58: 0 | L58: 0 | N58: for dA is set to half the normal value to prevent
A59: 57 | B59: 0 | C59: -20.68 | D59: -75.85 | E59: -20.68 | F59: 0.008550667129 | G59: 56.5 | H59: 57.5 | I59: 0.0001277352109 | J59: 1.092221269e-06 | K59: 0 | L59: 0 | N59: double-counting of the radiation. This is the same
A60: 58 | B60: 0 | C60: -20.37 | D60: -75.78 | E60: -20.37 | F60: 0.009183325965 | G60: 57.5 | H60: 58.5 | I60: 0.000129163472 | J60: 1.186150267e-06 | K60: 0 | L60: 0 | N60: technique that is used by NEC, EZNEC, and AutoEZ.
A61: 59 | B61: 0 | C61: -20.09 | D61: -75.73 | E61: -20.09 | F61: 0.009794899854 | G61: 58.5 | H61: 59.5 | I61: 0.0001305523887 | J61: 1.278747573e-06 | K61: 0 | L61: 0
A62: 60 | B62: 0 | C62: -19.83 | D62: -75.71 | E62: -19.83 | F62: 0.01039920166 | G62: 59.5 | H62: 60.5 | I62: 0.0001319015378 | J62: 1.371670691e-06 | K62: 0 | L62: 0 | N62: The sum of all the dA values should equal 2pi for
A63: 61 | B63: 0 | C63: -19.59 | D63: -75.71 | E63: -19.59 | F63: 0.01099005839 | G63: 60.5 | H63: 61.5 | I63: 0.0001332105085 | J63: 1.463991267e-06 | K63: 0 | L63: 0 | N63: patterns over ground or 4pi for free space. If that
A64: 62 | B64: 0 | C64: -19.37 | D64: -75.73 | E64: -19.37 | F64: 0.01156112242 | G64: 61.5 | H64: 62.5 | I64: 0.0001344789019 | J64: 1.554727048e-06 | K64: 0 | L64: 0 | N64: is not the case an error message will be shown.
A65: 63 | B65: 0 | C65: -19.17 | D65: -75.78 | E65: -19.17 | F65: 0.01210598134 | G65: 62.5 | H65: 63.5 | I65: 0.0001357063318 | J65: 1.642858319e-06 | K65: 0 | L65: 0
A66: 64 | B66: 0 | C66: -18.99 | D66: -75.85 | E66: -18.99 | F66: 0.01261827535 | G66: 63.5 | H66: 64.5 | I66: 0.0001368924241 | J66: 1.727346301e-06 | K66: 0 | L66: 0 | N66: For more information on RDF and DMF see ON4UN,
A67: 65 | B67: 0 | C67: -18.83 | D67: -75.95 | E67: -18.83 | F67: 0.01309181923 | G67: 64.5 | H67: 65.5 | I67: 0.0001380368178 | J67: 1.807153065e-06 | K67: 0 | L67: 0 | N67: "Low-Band DXing", 4th or 5th edition, Chapter 7,
A68: 66 | B68: 0 | C68: -18.69 | D68: -76.08 | E68: -18.69 | F68: 0.01352072563 | G68: 65.5 | H68: 66.5 | I68: 0.0001391391641 | J68: 1.881262462e-06 | K68: 0 | L68: 0 | N68: sections 1.8, 1.9, 1.10.
A69: 67 | B69: 0 | C69: -18.57 | D69: -76.23 | E69: -18.57 | F69: 0.01389952631 | G69: 66.5 | H69: 67.5 | I69: 0.0001401991272 | J69: 1.948701457e-06 | K69: 0 | L69: 0
A70: 68 | B70: 0 | C70: -18.48 | D70: -76.41 | E70: -18.48 | F70: 0.01419057522 | G70: 67.5 | H70: 68.5 | I70: 0.0001412163843 | J70: 2.003941724e-06 | K70: 0 | L70: 0 | N70: Dan Maguire, AC6LA
A71: 69 | B71: 0 | C71: -18.4 | D71: -76.61 | E71: -18.4 | F71: 0.01445439771 | G71: 68.5 | H71: 69.5 | I71: 0.0001421906256 | J71: 2.055279852e-06 | K71: 0 | L71: 0
A72: 70 | B72: 0 | C72: -18.34 | D72: -76.85 | E72: -18.34 | F72: 0.01465547841 | G72: 69.5 | H72: 70.5 | I72: 0.0001431215542 | J72: 2.097514847e-06 | K72: 0 | L72: 0
A73: 71 | B73: 0 | C73: -18.31 | D73: -77.12 | E73: -18.31 | F73: 0.01475706533 | G73: 70.5 | H73: 71.5 | I73: 0.0001440088866 | J73: 2.125148548e-06 | K73: 0 | L73: 0
A74: 72 | B74: 0 | C74: -18.31 | D74: -77.42 | E74: -18.31 | F74: 0.01475706533 | G74: 71.5 | H74: 72.5 | I74: 0.0001448523525 | J74: 2.137595629e-06 | K74: 0 | L74: 0
A75: 73 | B75: 0 | C75: -18.33 | D75: -77.76 | E75: -18.33 | F75: 0.01468926278 | G75: 72.5 | H75: 73.5 | I75: 0.000145651695 | J75: 2.139516021e-06 | K75: 0 | L75: 0
A76: 74 | B76: 0 | C76: -18.37 | D76: -78.14 | E76: -18.37 | F76: 0.01455459081 | G76: 73.5 | H76: 74.5 | I76: 0.0001464066705 | J76: 2.130889181e-06 | K76: 0 | L76: 0
A77: 75 | B77: 0 | C77: -18.45 | D77: -78.56 | E77: -18.45 | F77: 0.01428893959 | G77: 74.5 | H77: 75.5 | I77: 0.0001471170492 | J77: 2.102146628e-06 | K77: 0 | L77: 0
A78: 76 | B78: 0 | C78: -18.57 | D78: -79.03 | E78: -18.57 | F78: 0.01389952631 | G78: 75.5 | H78: 76.5 | I78: 0.0001477826146 | J78: 2.054108339e-06 | K78: 0 | L78: 0
A79: 77 | B79: 0 | C79: -18.72 | D79: -79.55 | E79: -18.72 | F79: 0.01342764961 | G79: 76.5 | H79: 77.5 | I79: 0.0001484031639 | J79: 1.992705686e-06 | K79: 0 | L79: 0
A80: 78 | B80: 0 | C80: -18.92 | D80: -80.13 | E80: -18.92 | F80: 0.01282330583 | G80: 77.5 | H80: 78.5 | I80: 0.0001489785082 | J80: 1.910396973e-06 | K80: 0 | L80: 0
A81: 79 | B81: 0 | C81: -19.17 | D81: -80.78 | E81: -19.17 | F81: 0.01210598134 | G81: 78.5 | H81: 79.5 | I81: 0.0001495084723 | J81: 1.809946775e-06 | K81: 0 | L81: 0
A82: 80 | B82: 0 | C82: -19.49 | D82: -81.51 | E82: -19.49 | F82: 0.01124604974 | G82: 79.5 | H82: 80.5 | I82: 0.0001499928946 | J82: 1.686827553e-06 | K82: 0 | L82: 0
A83: 81 | B83: 0 | C83: -19.88 | D83: -82.34 | E83: -19.88 | F83: 0.01028016298 | G83: 80.5 | H83: 81.5 | I83: 0.0001504316276 | J83: 1.546461649e-06 | K83: 0 | L83: 0
A84: 82 | B84: 0 | C84: -20.36 | D84: -83.28 | E84: -20.36 | F84: 0.009204495718 | G84: 81.5 | H84: 82.5 | I84: 0.0001508245377 | J84: 1.388263811e-06 | K84: 0 | L84: 0
A85: 83 | B85: 0 | C85: -20.97 | D85: -84.36 | E85: -20.97 | F85: 0.00799834255 | G85: 82.5 | H85: 83.5 | I85: 0.0001511715051 | J85: 1.209121482e-06 | K85: 0 | L85: 0
A86: 84 | B86: 0 | C86: -21.74 | D86: -85.63 | E86: -21.74 | F86: 0.006698846094 | G86: 83.5 | H86: 84.5 | I86: 0.0001514724243 | J86: 1.014690458e-06 | K86: 0 | L86: 0
A87: 85 | B87: 0 | C87: -22.74 | D87: -87.15 | E87: -22.74 | F87: 0.005321082593 | G87: 84.5 | H87: 85.5 | I87: 0.0001517272035 | J87: 8.073529812e-07 | K87: 0 | L87: 0
A88: 86 | B88: 0 | C88: -24.07 | D88: -89.04 | E88: -24.07 | F88: 0.003917418771 | G88: 85.5 | H88: 86.5 | I88: 0.0001519357651 | J88: 5.951960181e-07 | K88: 0 | L88: 0
A89: 87 | B89: 0 | C89: -25.93 | D89: -91.49 | E89: -25.93 | F89: 0.002552701303 | G89: 86.5 | H89: 87.5 | I89: 0.0001520980456 | J89: 3.882608791e-07 | K89: 0 | L89: 0
A90: 88 | B90: 0 | C90: -28.79 | D90: -94.97 | E90: -28.79 | F90: 0.001321295634 | G90: 87.5 | H90: 88.5 | I90: 0.0001522139956 | J90: 2.011196878e-07 | K90: 0 | L90: 0
A91: 89 | B91: 0 | C91: -34.12 | D91: -100.96 | E91: -34.12 | F91: 0.0003872576449 | G91: 88.5 | H91: 89.5 | I91: 0.0001522835797 | J91: 5.897298043e-08 | K91: 0 | L91: 0
A92: 90 | B92: 0 | C92: -194.9 | D92: -223.53 | E92: -194.9 | F92: 3.235936569e-20 | G92: 89.5 | H92: 90 | I92: 7.615338837e-05 | J92: 2.464275343e-24 | K92: 0 | L92: 0
A93: 0 | B93: 1 | C93: -75.71 | D93: -104.94 | E93: -75.71 | F93: =10 ^ (E93 / 10) -> 2.685344446e-08 | G93: =IF(A93 = 0, 0, A93 - StepSize/2) -> 0 | H93: =IF(A93 = EndTheta, EndTheta, A93 + StepSize/2) -> 0.5 | I93: =RADIANS(IF(OR(B93 = 0, B93 = 360), StepSize/2, StepSize)) * (COS(RADIANS(G93)) - COS(RADIANS(H93))) -> 6.645678993e-07 | J93: =F93 * I93 -> 1.784593717e-14 | K93: =IF(BH_BegAz < BH_EndAz, IF(AND(B93 >= BH_BegAz, B93 <= BH_EndAz), F93, 0), IF(OR(B93 >= BH_BegAz, B93 <= BH_EndAz), F93, 0)) * RADIANS(IF(OR(B93 = BH_BegAz, B93 = BH_EndAz), StepSize/2, StepSize)) * (COS(RADIANS(G93)) - COS(RADIANS(H93))) -> 0 | L93: =IF(AND(B93 >= LI_BegAz, B93 <= LI_EndAz), RADIANS(IF(OR(B93 = LI_BegAz, B93 = LI_EndAz), StepSize/2, StepSize)) * (COS(RADIANS(G93)) - COS(RADIANS(H93))), 0) -> 0
A94: 1 | B94: 1 | C94: -64.2 | D94: -99.15 | E94: -64.2 | F94: 3.801893963e-07 | G94: 0.5 | H94: 1.5 | I94: 5.316239542e-06 | J94: 2.021177902e-12 | K94: 0 | L94: 0
A95: 2 | B95: 1 | C95: -59.14 | D95: -93.91 | E95: -59.14 | F95: 1.218989599e-06 | G95: 1.5 | H95: 2.5 | I95: 1.063085971e-05 | J95: 1.295890741e-11 | K95: 0 | L95: 0
A96: 3 | B96: 1 | C96: -55.83 | D96: -90.5 | E96: -55.83 | F96: 2.612161354e-06 | G96: 2.5 | H96: 3.5 | I96: 1.594224161e-05 | J96: 4.164370743e-11 | K96: 0 | L96: 0
A97: 4 | B97: 1 | C97: -53.36 | D97: -88.05 | E97: -53.36 | F97: 4.613175746e-06 | G97: 3.5 | H97: 4.5 | I97: 2.124876735e-05 | J97: 9.802429814e-11 | K97: 0 | L97: 0
A98: 5 | B98: 1 | C98: -51.4 | D98: -86.16 | E98: -51.4 | F98: 7.244359601e-06 | G98: 4.5 | H98: 5.5 | I98: 2.65488205e-05 | J98: 1.923292027e-10 | K98: 0 | L98: 0
A99: 6 | B99: 1 | C99: -49.78 | D99: -84.65 | E99: -49.78 | F99: 1.051961874e-05 | G99: 5.5 | H99: 6.5 | I99: 3.184078664e-05 | J99: 3.349529357e-10 | K99: 0 | L99: 0
A100: 7 | B100: 1 | C100: -48.42 | D100: -83.42 | E100: -48.42 | F100: 1.438798578e-05 | G100: 6.5 | H100: 7.5 | I100: 3.712305375e-05 | J100: 5.341259696e-10 | K100: 0 | L100: 0
A101: 8 | B101: 1 | C101: -47.26 | D101: -82.4 | E101: -47.26 | F101: 1.879316817e-05 | G101: 7.5 | H101: 8.5 | I101: 4.239401283e-05 | J101: 7.967178125e-10 | K101: 0 | L101: 0
A102: 9 | B102: 1 | C102: -46.27 | D102: -81.56 | E102: -46.27 | F102: 2.360478233e-05 | G102: 8.5 | H102: 9.5 | I102: 4.765205828e-05 | J102: 1.124816463e-09 | K102: 0 | L102: 0
A103: 10 | B103: 1 | C103: -45.42 | D103: -80.87 | E103: -45.42 | F103: 2.870780582e-05 | G103: 9.5 | H103: 10.5 | I103: 5.289558845e-05 | J103: 1.518516282e-09 | K103: 0 | L103: 0
A104: 11 | B104: 1 | C104: -44.7 | D104: -80.32 | E104: -44.7 | F104: 3.388441561e-05 | G104: 10.5 | H104: 11.5 | I104: 5.812300612e-05 | J104: 1.969464096e-09 | K104: 0 | L104: 0
A105: 12 | B105: 1 | C105: -44.1 | D105: -79.88 | E105: -44.1 | F105: 3.89045145e-05 | G105: 11.5 | H105: 12.5 | I105: 6.333271895e-05 | J105: 2.463928683e-09 | K105: 0 | L105: 0
A106: 13 | B106: 1 | C106: -43.61 | D106: -79.56 | E106: -43.61 | F106: 4.355118737e-05 | G106: 12.5 | H106: 13.5 | I106: 6.852314002e-05 | J106: 2.98426411e-09 | K106: 0 | L106: 0
A107: 14 | B107: 1 | C107: -43.22 | D107: -79.35 | E107: -43.22 | F107: 4.764309868e-05 | G107: 13.5 | H107: 14.5 | I107: 7.369268828e-05 | J107: 3.51094802e-09 | K107: 0 | L107: 0
A108: 15 | B108: 1 | C108: -42.94 | D108: -79.24 | E108: -42.94 | F108: 5.081594426e-05 | G108: 14.5 | H108: 15.5 | I108: 7.883978904e-05 | J108: 4.006318325e-09 | K108: 0 | L108: 0
A109: 16 | B109: 1 | C109: -42.77 | D109: -79.25 | E109: -42.77 | F109: 5.284452518e-05 | G109: 15.5 | H109: 16.5 | I109: 8.396287443e-05 | J109: 4.436978232e-09 | K109: 0 | L109: 0
A110: 17 | B110: 1 | C110: -42.71 | D110: -79.38 | E110: -42.71 | F110: 5.357966575e-05 | G110: 16.5 | H110: 17.5 | I110: 8.906038391e-05 | J110: 4.771825602e-09 | K110: 0 | L110: 0
A111: 18 | B111: 1 | C111: -42.77 | D111: -79.63 | E111: -42.77 | F111: 5.284452518e-05 | G111: 17.5 | H111: 18.5 | I111: 9.413076474e-05 | J111: 4.974295567e-09 | K111: 0 | L111: 0
A112: 19 | B112: 1 | C112: -42.97 | D112: -80.03 | E112: -42.97 | F112: 5.046612976e-05 | G112: 18.5 | H112: 19.5 | I112: 9.917247243e-05 | J112: 5.004850862e-09 | K112: 0 | L112: 0
A113: 20 | B113: 1 | C113: -43.32 | D113: -80.59 | E113: -43.32 | F113: 4.655860935e-05 | G113: 19.5 | H113: 20.5 | I113: 0.0001041839712 | J113: 4.850660817e-09 | K113: 0 | L113: 0
A114: 21 | B114: 1 | C114: -43.86 | D114: -81.36 | E114: -43.86 | F114: 4.111497211e-05 | G114: 20.5 | H114: 21.5 | I114: 0.0001091637346 | J114: 4.488263902e-09 | K114: 0 | L114: 0
A115: 22 | B115: 1 | C115: -44.63 | D115: -82.38 | E115: -44.63 | F115: 3.443499308e-05 | G115: 21.5 | H115: 22.5 | I115: 0.0001141102456 | J115: 3.929385516e-09 | K115: 0 | L115: 0
A116: 23 | B116: 1 | C116: -45.71 | D116: -83.75 | E116: -45.71 | F116: 2.685344446e-05 | G116: 22.5 | H116: 23.5 | I116: 0.0001190219975 | J116: 3.196150599e-09 | K116: 0 | L116: 0
A117: 24 | B117: 1 | C117: -47.24 | D117: -85.64 | E117: -47.24 | F117: 1.887991349e-05 | G117: 23.5 | H117: 24.5 | I117: 0.0001238974942 | J117: 2.339173972e-09 | K117: 0 | L117: 0
A118: 25 | B118: 1 | C118: -49.48 | D118: -88.4 | E118: -49.48 | F118: 1.127197456e-05 | G118: 24.5 | H118: 25.5 | I118: 0.0001287352505 | J118: 1.451100469e-09 | K118: 0 | L118: 0
A119: 26 | B119: 1 | C119: -53.09 | D119: -93.03 | E119: -53.09 | F119: 4.909078762e-06 | G119: 25.5 | H119: 26.5 | I119: 0.0001335337928 | J119: 6.55527906e-10 | K119: 0 | L119: 0
A120: 27 | B120: 1 | C120: -60.67 | D120: -104.3 | E120: -60.67 | F120: 8.570378452e-07 | G120: 26.5 | H120: 27.5 | I120: 0.0001382916594 | J120: 1.185211858e-10 | K120: 0 | L120: 0
A121: 28 | B121: 1 | C121: -64.3 | D121: -96.75 | E121: -64.3 | F121: 3.715352291e-07 | G121: 27.5 | H121: 28.5 | I121: 0.000143007401 | J121: 5.313228749e-11 | K121: 0 | L121: 0
A122: 29 | B122: 1 | C122: -53.1 | D122: -89.3 | E122: -53.1 | F122: 4.897788194e-06 | G122: 28.5 | H122: 29.5 | I122: 0.0001476795812 | J122: 7.233033092e-10 | K122: 0 | L122: 0
A123: 30 | B123: 1 | C123: -47.94 | D123: -85.12 | E123: -47.94 | F123: 1.606941253e-05 | G123: 29.5 | H123: 30.5 | I123: 0.0001523067767 | J123: 2.447480427e-09 | K123: 0 | L123: 0
A124: 31 | B124: 1 | C124: -44.48 | D124: -82.18 | E124: -44.48 | F124: 3.564511334e-05 | G124: 30.5 | H124: 31.5 | I124: 0.0001568875782 | J124: 5.592275506e-09 | K124: 0 | L124: 0
A125: 32 | B125: 1 | C125: -41.84 | D125: -79.9 | E125: -41.84 | F125: 6.546361741e-05 | G125: 31.5 | H125: 32.5 | I125: 0.0001614205901 | J125: 1.056717575e-08 | K125: 0 | L125: 0
A126: 33 | B126: 1 | C126: -39.67 | D126: -78.02 | E126: -39.67 | F126: 0.0001078946722 | G126: 32.5 | H126: 33.5 | I126: 0.0001659044318 | J126: 1.790020429e-08 | K126: 0 | L126: 0
A127: 34 | B127: 1 | C127: -37.84 | D127: -76.44 | E127: -37.84 | F127: 0.0001644371723 | G127: 33.5 | H127: 34.5 | I127: 0.0001703377374 | J127: 2.800985588e-08 | K127: 0 | L127: 0
A128: 35 | B128: 1 | C128: -36.24 | D128: -75.07 | E128: -36.24 | F128: 0.0002376840287 | G128: 34.5 | H128: 35.5 | I128: 0.0001747191565 | J128: 4.152795299e-08 | K128: 0 | L128: 0
A129: 36 | B129: 1 | C129: -34.82 | D129: -73.86 | E129: -34.81 | F129: 0.000330369541 | G129: 35.5 | H129: 36.5 | I129: 0.0001790473544 | J129: 5.915179229e-08 | K129: 0 | L129: 0
A130: 37 | B130: 1 | C130: -33.54 | D130: -72.78 | E130: -33.53 | F130: 0.0004436086439 | G130: 36.5 | H130: 37.5 | I130: 0.0001833210127 | J130: 8.132278587e-08 | K130: 0 | L130: 0
A131: 38 | B131: 1 | C131: -32.37 | D131: -71.81 | E131: -32.37 | F131: 0.0005794286964 | G131: 37.5 | H131: 38.5 | I131: 0.0001875388297 | J131: 1.086653796e-07 | K131: 0 | L131: 0
A132: 39 | B132: 1 | C132: -31.31 | D132: -70.94 | E132: -31.3 | F132: 0.0007413102413 | G132: 38.5 | H132: 39.5 | I132: 0.0001916995206 | J132: 1.421088179e-07 | K132: 0 | L132: 0
A133: 40 | B133: 1 | C133: -30.32 | D133: -70.15 | E133: -30.32 | F133: 0.0009289663868 | G133: 39.5 | H133: 40.5 | I133: 0.0001958018179 | J133: 1.818933073e-07 | K133: 0 | L133: 0
A134: 41 | B134: 1 | C134: -29.41 | D134: -69.43 | E134: -29.41 | F134: 0.001145512941 | G134: 40.5 | H134: 41.5 | I134: 0.0001998444721 | J134: 2.289244291e-07 | K134: 0 | L134: 0
A135: 42 | B135: 1 | C135: -28.57 | D135: -68.77 | E135: -28.57 | F135: 0.001389952631 | G135: 41.5 | H135: 42.5 | I135: 0.0002038262517 | J135: 2.833088349e-07 | K135: 0 | L135: 0
A136: 43 | B136: 1 | C136: -27.78 | D136: -68.16 | E136: -27.78 | F136: 0.001667247213 | G136: 42.5 | H136: 43.5 | I136: 0.0002077459439 | J136: 3.463638459e-07 | K136: 0 | L136: 0
A137: 44 | B137: 1 | C137: -27.04 | D137: -67.61 | E137: -27.04 | F137: 0.00197696964 | G137: 43.5 | H137: 44.5 | I137: 0.0002116023547 | J137: 4.18331431e-07 | K137: 0 | L137: 0
A138: 45 | B138: 1 | C138: -26.35 | D138: -67.1 | E138: -26.35 | F138: 0.00231739465 | G138: 44.5 | H138: 45.5 | I138: 0.0002153943093 | J138: 4.9915362e-07 | K138: 0 | L138: 0
A139: 46 | B139: 1 | C139: -25.7 | D139: -66.64 | E139: -25.7 | F139: 0.002691534804 | G139: 45.5 | H139: 46.5 | I139: 0.0002191206527 | J139: 5.897708631e-07 | K139: 0 | L139: 0
A140: 47 | B140: 1 | C140: -25.09 | D140: -66.22 | E140: -25.09 | F140: 0.003097419299 | G140: 46.5 | H140: 47.5 | I140: 0.0002227802499 | J140: 6.900438455e-07 | K140: 0 | L140: 0
A141: 48 | B141: 1 | C141: -24.52 | D141: -65.84 | E141: -24.51 | F141: 0.003539973411 | G141: 47.5 | H141: 48.5 | I141: 0.000226371986 | J141: 8.013508115e-07 | K141: 0 | L141: 0
A142: 49 | B142: 1 | C142: -23.98 | D142: -65.49 | E142: -23.98 | F142: 0.003999447498 | G142: 48.5 | H142: 49.5 | I142: 0.0002298947671 | J142: 9.194520509e-07 | K142: 0 | L142: 0
A143: 50 | B143: 1 | C143: -23.47 | D143: -65.17 | E143: -23.47 | F143: 0.004497798549 | G143: 49.5 | H143: 50.5 | I143: 0.0002333475199 | J143: 1.049550137e-06 | K143: 0 | L143: 0
A144: 51 | B144: 1 | C144: -22.99 | D144: -64.89 | E144: -22.99 | F144: 0.005023425895 | G144: 50.5 | H144: 51.5 | I144: 0.0002367291929 | J144: 1.189191558e-06 | K144: 0 | L144: 0
A145: 52 | B145: 1 | C145: -22.54 | D145: -64.64 | E145: -22.54 | F145: 0.005571857489 | G145: 51.5 | H145: 52.5 | I145: 0.0002400387558 | J145: 1.337461739e-06 | K145: 0 | L145: 0
A146: 53 | B146: 1 | C146: -22.12 | D146: -64.41 | E146: -22.12 | F146: 0.006137620052 | G146: 52.5 | H146: 53.5 | I146: 0.0002432752006 | J146: 1.49313075e-06 | K146: 0 | L146: 0
A147: 54 | B147: 1 | C147: -21.73 | D147: -64.22 | E147: -21.72 | F147: 0.006729766563 | G147: 53.5 | H147: 54.5 | I147: 0.0002464375415 | J147: 1.658467126e-06 | K147: 0 | L147: 0
A148: 55 | B148: 1 | C148: -21.35 | D148: -64.05 | E148: -21.35 | F148: 0.007328245331 | G148: 54.5 | H148: 55.5 | I148: 0.000249524815 | J148: 1.828579061e-06 | K148: 0 | L148: 0
A149: 56 | B149: 1 | C149: -21.01 | D149: -63.91 | E149: -21.01 | F149: 0.007925013305 | G149: 55.5 | H149: 56.5 | I149: 0.0002525360809 | J149: 2.001351801e-06 | K149: 0 | L149: 0
A150: 57 | B150: 1 | C150: -20.68 | D150: -63.8 | E150: -20.68 | F150: 0.008550667129 | G150: 56.5 | H150: 57.5 | I150: 0.0002554704219 | J150: 2.184442539e-06 | K150: 0 | L150: 0
A151: 58 | B151: 1 | C151: -20.38 | D151: -63.71 | E151: -20.38 | F151: 0.009162204901 | G151: 57.5 | H151: 58.5 | I151: 0.0002583269441 | J151: 2.366844393e-06 | K151: 0 | L151: 0
A152: 59 | B152: 1 | C152: -20.1 | D152: -63.64 | E152: -20.1 | F152: 0.00977237221 | G152: 58.5 | H152: 59.5 | I152: 0.0002611047774 | J152: 2.55161307e-06 | K152: 0 | L152: 0
A153: 60 | B153: 1 | C153: -19.84 | D153: -63.61 | E153: -19.84 | F153: 0.01037528416 | G153: 59.5 | H153: 60.5 | I153: 0.0002638030756 | J153: 2.737031872e-06 | K153: 0 | L153: 0
A154: 61 | B154: 1 | C154: -19.6 | D154: -63.59 | E154: -19.6 | F154: 0.01096478196 | G154: 60.5 | H154: 61.5 | I154: 0.0002664210169 | J154: 2.921248361e-06 | K154: 0 | L154: 0
A155: 62 | B155: 1 | C155: -19.38 | D155: -63.6 | E155: -19.38 | F155: 0.01153453258 | G155: 61.5 | H155: 62.5 | I155: 0.0002689578038 | J155: 3.10230255e-06 | K155: 0 | L155: 0
A156: 63 | B156: 1 | C156: -19.18 | D156: -63.64 | E156: -19.18 | F156: 0.01207813835 | G156: 62.5 | H156: 63.5 | I156: 0.0002714126635 | J156: 3.2781597e-06 | K156: 0 | L156: 0
A157: 64 | B157: 1 | C157: -19 | D157: -63.7 | E157: -19 | F157: =10 ^ (E157 / 10) -> 0.01258925412 | G157: =IF(A157 = 0, 0, A157 - StepSize/2) -> 63.5 | H157: =IF(A157 = EndTheta, EndTheta, A157 + StepSize/2) -> 64.5 | I157: =RADIANS(IF(OR(B157 = 0, B157 = 360), StepSize/2, StepSize)) * (COS(RADIANS(G157)) - COS(RADIANS(H157))) -> 0.0002737848483 | J157: =F157 * I157 -> 3.446747029e-06 | K157: =IF(BH_BegAz < BH_EndAz, IF(AND(B157 >= BH_BegAz, B157 <= BH_EndAz), F157, 0), IF(OR(B157 >= BH_BegAz, B157 <= BH_EndAz), F157, 0)) * RADIANS(IF(OR(B157 = BH_BegAz, B157 = BH_EndAz), StepSize/2, StepSize)) * (COS(RADIANS(G157)) - COS(RADIANS(H157))) -> 0 | L157: =IF(AND(B157 >= LI_BegAz, B157 <= LI_EndAz), RADIANS(IF(OR(B157 = LI_BegAz, B157 = LI_EndAz), StepSize/2, StepSize)) * (COS(RADIANS(G157)) - COS(RADIANS(H157))), 0) -> 0
A158: 65 | B158: 1 | C158: -18.84 | D158: -63.79 | E158: -18.84 | F158: 0.01306170888 | G158: 64.5 | H158: 65.5 | I158: 0.0002760736356 | J158: 3.605993457e-06 | K158: 0 | L158: 0
A159: 66 | B159: 1 | C159: -18.7 | D159: -63.91 | E159: -18.7 | F159: 0.01348962883 | G159: 65.5 | H159: 66.5 | I159: 0.0002782783281 | J159: 3.753871357e-06 | K159: 0 | L159: 0
A160: 67 | B160: 1 | C160: -18.58 | D160: -64.05 | E160: -18.58 | F160: 0.01386755829 | G160: 66.5 | H160: 67.5 | I160: 0.0002803982544 | J160: 3.888439137e-06 | K160: 0 | L160: 0
A161: 68 | B161: 1 | C161: -18.48 | D161: -64.22 | E161: -18.48 | F161: 0.01419057522 | G161: 67.5 | H161: 68.5 | I161: 0.0002824327687 | J161: 4.007883447e-06 | K161: 0 | L161: 0
A162: 69 | B162: 1 | C162: -18.4 | D162: -64.42 | E162: -18.4 | F162: 0.01445439771 | G162: 68.5 | H162: 69.5 | I162: 0.0002843812512 | J162: 4.110559705e-06 | K162: 0 | L162: 0
A163: 70 | B163: 1 | C163: -18.35 | D163: -64.65 | E163: -18.35 | F163: 0.01462177174 | G163: 69.5 | H163: 70.5 | I163: 0.0002862431084 | J163: 4.185381394e-06 | K163: 0 | L163: 0
A164: 71 | B164: 1 | C164: -18.32 | D164: -64.91 | E164: -18.32 | F164: 0.01472312502 | G164: 70.5 | H164: 71.5 | I164: 0.0002880177732 | J164: 4.240521684e-06 | K164: 0 | L164: 0
A165: 72 | B165: 1 | C165: -18.31 | D165: -65.21 | E165: -18.31 | F165: 0.01475706533 | G165: 71.5 | H165: 72.5 | I165: 0.000289704705 | J165: 4.275191259e-06 | K165: 0 | L165: 0
A166: 73 | B166: 1 | C166: -18.33 | D166: -65.54 | E166: -18.33 | F166: 0.01468926278 | G166: 72.5 | H166: 73.5 | I166: 0.0002913033899 | J166: 4.279032042e-06 | K166: 0 | L166: 0
A167: 74 | B167: 1 | C167: -18.38 | D167: -65.91 | E167: -18.38 | F167: 0.01452111618 | G167: 73.5 | H167: 74.5 | I167: 0.000292813341 | J167: 4.251976543e-06 | K167: 0 | L167: 0
A168: 75 | B168: 1 | C168: -18.46 | D168: -66.33 | E168: -18.46 | F168: 0.01425607594 | G168: 74.5 | H168: 75.5 | I168: 0.0002942340983 | J168: 4.194623649e-06 | K168: 0 | L168: 0
A169: 76 | B169: 1 | C169: -18.57 | D169: -66.79 | E169: -18.57 | F169: 0.01389952631 | G169: 75.5 | H169: 76.5 | I169: 0.0002955652291 | J169: 4.108216679e-06 | K169: 0 | L169: 0
A170: 77 | B170: 1 | C170: -18.73 | D170: -67.31 | E170: -18.73 | F170: 0.01339676687 | G170: 76.5 | H170: 77.5 | I170: 0.0002968063278 | J170: 3.976245181e-06 | K170: 0 | L170: 0
A171: 78 | B171: 1 | C171: -18.93 | D171: -67.88 | E171: -18.93 | F171: 0.01279381304 | G171: 77.5 | H171: 78.5 | I171: 0.0002979570165 | J171: 3.812006363e-06 | K171: 0 | L171: 0
A172: 79 | B172: 1 | C172: -19.18 | D172: -68.53 | E172: -19.18 | F172: 0.01207813835 | G172: 78.5 | H172: 79.5 | I172: 0.0002990169445 | J172: 3.611568025e-06 | K172: 0 | L172: 0
A173: 80 | B173: 1 | C173: -19.49 | D173: -69.25 | E173: -19.49 | F173: 0.01124604974 | G173: 79.5 | H173: 80.5 | I173: 0.0002999857891 | J173: 3.373655106e-06 | K173: 0 | L173: 0
A174: 81 | B174: 1 | C174: -19.88 | D174: -70.08 | E174: -19.88 | F174: 0.01028016298 | G174: 80.5 | H174: 81.5 | I174: 0.0003008632552 | J174: 3.092923298e-06 | K174: 0 | L174: 0
A175: 82 | B175: 1 | C175: -20.37 | D175: -71.01 | E175: -20.37 | F175: 0.009183325965 | G175: 81.5 | H175: 82.5 | I175: 0.0003016490753 | J175: 2.770141786e-06 | K175: 0 | L175: 0
A176: 83 | B176: 1 | C176: -20.98 | D176: -72.09 | E176: -20.98 | F176: 0.007979946873 | G176: 82.5 | H176: 83.5 | I176: 0.0003023430102 | J176: 2.412681159e-06 | K176: 0 | L176: 0
A177: 84 | B177: 1 | C177: -21.75 | D177: -73.36 | E177: -21.75 | F177: 0.006683439176 | G177: 83.5 | H177: 84.5 | I177: 0.0003029448486 | J177: 2.024713469e-06 | K177: 0 | L177: 0
A178: 85 | B178: 1 | C178: -22.74 | D178: -74.88 | E178: -22.74 | F178: 0.005321082593 | G178: 84.5 | H178: 85.5 | I178: 0.0003034544069 | J178: 1.614705962e-06 | K178: 0 | L178: 0
A179: 86 | B179: 1 | C179: -24.07 | D179: -76.76 | E179: -24.07 | F179: 0.003917418771 | G179: 85.5 | H179: 86.5 | I179: 0.0003038715302 | J179: 1.190392036e-06 | K179: 0 | L179: 0
A180: 87 | B180: 1 | C180: -25.93 | D180: -79.22 | E180: -25.93 | F180: 0.002552701303 | G180: 86.5 | H180: 87.5 | I180: 0.0003041960912 | J180: 7.765217582e-07 | K180: 0 | L180: 0
A181: 88 | B181: 1 | C181: -28.79 | D181: -82.7 | E181: -28.79 | F181: 0.001321295634 | G181: 87.5 | H181: 88.5 | I181: 0.0003044279911 | J181: 4.022393756e-07 | K181: 0 | L181: 0
A182: 89 | B182: 1 | C182: -34.13 | D182: -88.68 | E182: -34.13 | F182: 0.0003863669771 | G182: 88.5 | H182: 89.5 | I182: 0.0003045671594 | J182: 1.176746927e-07 | K182: 0 | L182: 0
A183: 90 | B183: 1 | C183: -191.22 | D183: -206.64 | E183: -191.1 | F183: 7.762471166e-20 | G183: 89.5 | H183: 90 | I183: 0.0001523067767 | J183: 1.182276963e-23 | K183: 0 | L183: 0
A184: 0 | B184: 2 | C184: -75.72 | D184: -103.59 | E184: -75.71 | F184: 2.685344446e-08 | G184: 0 | H184: 0.5 | I184: 6.645678993e-07 | J184: 1.784593717e-14 | K184: 0 | L184: 0
A185: 1 | B185: 2 | C185: -64.21 | D185: -93.76 | E185: -64.2 | F185: 3.801893963e-07 | G185: 0.5 | H185: 1.5 | I185: 5.316239542e-06 | J185: 2.021177902e-12 | K185: 0 | L185: 0
A186: 2 | B186: 2 | C186: -59.15 | D186: -88.45 | E186: -59.15 | F186: 1.216186001e-06 | G186: 1.5 | H186: 2.5 | I186: 1.063085971e-05 | J186: 1.292910275e-11 | K186: 0 | L186: 0
A187: 3 | B187: 2 | C187: -55.84 | D187: -85.12 | E187: -55.83 | F187: 2.612161354e-06 | G187: 2.5 | H187: 3.5 | I187: 1.594224161e-05 | J187: 4.164370743e-11 | K187: 0 | L187: 0
A188: 4 | B188: 2 | C188: -53.37 | D188: -82.72 | E188: -53.36 | F188: 4.613175746e-06 | G188: 3.5 | H188: 4.5 | I188: 2.124876735e-05 | J188: 9.802429814e-11 | K188: 0 | L188: 0
A189: 5 | B189: 2 | C189: -51.41 | D189: -80.86 | E189: -51.4 | F189: 7.244359601e-06 | G189: 4.5 | H189: 5.5 | I189: 2.65488205e-05 | J189: 1.923292027e-10 | K189: 0 | L189: 0
A190: 6 | B190: 2 | C190: -49.79 | D190: -79.38 | E190: -49.78 | F190: 1.051961874e-05 | G190: 5.5 | H190: 6.5 | I190: 3.184078664e-05 | J190: 3.349529357e-10 | K190: 0 | L190: 0
A191: 7 | B191: 2 | C191: -48.43 | D191: -78.17 | E191: -48.42 | F191: 1.438798578e-05 | G191: 6.5 | H191: 7.5 | I191: 3.712305375e-05 | J191: 5.341259696e-10 | K191: 0 | L191: 0
A192: 8 | B192: 2 | C192: -47.27 | D192: -77.17 | E192: -47.26 | F192: 1.879316817e-05 | G192: 7.5 | H192: 8.5 | I192: 4.239401283e-05 | J192: 7.967178125e-10 | K192: 0 | L192: 0
A193: 9 | B193: 2 | C193: -46.28 | D193: -76.34 | E193: -46.27 | F193: 2.360478233e-05 | G193: 8.5 | H193: 9.5 | I193: 4.765205828e-05 | J193: 1.124816463e-09 | K193: 0 | L193: 0
A194: 10 | B194: 2 | C194: -45.43 | D194: -75.66 | E194: -45.43 | F194: 2.86417797e-05 | G194: 9.5 | H194: 10.5 | I194: 5.289558845e-05 | J194: 1.515023792e-09 | K194: 0 | L194: 0
A195: 11 | B195: 2 | C195: -44.71 | D195: -75.1 | E195: -44.71 | F195: 3.380648362e-05 | G195: 10.5 | H195: 11.5 | I195: 5.812300612e-05 | J195: 1.964934454e-09 | K195: 0 | L195: 0
A196: 12 | B196: 2 | C196: -44.11 | D196: -74.67 | E196: -44.1 | F196: 3.89045145e-05 | G196: 11.5 | H196: 12.5 | I196: 6.333271895e-05 | J196: 2.463928683e-09 | K196: 0 | L196: 0
A197: 13 | B197: 2 | C197: -43.61 | D197: -74.35 | E197: -43.61 | F197: 4.355118737e-05 | G197: 12.5 | H197: 13.5 | I197: 6.852314002e-05 | J197: 2.98426411e-09 | K197: 0 | L197: 0
A198: 14 | B198: 2 | C198: -43.23 | D198: -74.14 | E198: -43.22 | F198: 4.764309868e-05 | G198: 13.5 | H198: 14.5 | I198: 7.369268828e-05 | J198: 3.51094802e-09 | K198: 0 | L198: 0
A199: 15 | B199: 2 | C199: -42.95 | D199: -74.03 | E199: -42.94 | F199: 5.081594426e-05 | G199: 14.5 | H199: 15.5 | I199: 7.883978904e-05 | J199: 4.006318325e-09 | K199: 0 | L199: 0
A200: 16 | B200: 2 | C200: -42.77 | D200: -74.03 | E200: -42.77 | F200: 5.284452518e-05 | G200: 15.5 | H200: 16.5 | I200: 8.396287443e-05 | J200: 4.436978232e-09 | K200: 0 | L200: 0
... 4300 more rows

Sheet Noise Margin
C2: User input
B3: Noise Level P.372-13 | C3: 46 | D3: dB
B4: Feed System Losses | C4: 2 | D4: dB | F4: Result:
B5: RX Noise Figure | C5: 4 | D5: dB | G5: Noise Margin | H5: =C3+AvgGain-3-C4-C5 -> 3.860451089 | I5: above electronics noise
B8: --- Notes ---
B9: NoiseMargin = NoiseLevel + AverageGain -3 dB - FeedSystemLosses - NoiseFigure
B10: Receiving antenna gain is typically negative in dBi
B11: AverageGain is "Avg Gain RDF DMF" sheet N20
B13: Noise Level from Figure 10 of P.372-13 document: | F13: https://www.itu.int/dms_pubrec/itu-r/rec/p/R-REC-P.372-13-201609-I!!PDF-E.pdf
B14: 46 dB on 160 at a quiet rural receiving site, minimum noise level expected: P.372-13 Figure 2
B15: 64 dB on 160 at a residential receiving site, median value
B16: 38 dB on 80 at a quiet rural site, minimum noise level expected
B17: 56 dB on 80 at a residential site, median value
B18: The distribution around the median value curves is described in Radio Noise document Table 2
B19: The Noise Margin should be several dB to achieve good antenna system performance in all conditions
B21: RX Noise Figure is typically 3 to 5 dB. Specific preamplifiers may have smaller numbers
B22: Feed System Losses is all losses from all transformers, cables, possible relays and
B23: filtering before radio or preamplifier
B25: -3 dB comes from requirement to receive Main Lobe's Gmax - 3 dB points

Sheet Leaking Index
M1: Leaking Index algorithm - Jukka Klemola, OH6LI
F2: Result: | M2: Excel functions finalization - Dan Maguire, AC6LA
G3: dB below Max Gain | H3: 3 level analysis
C4: User input | G4: 12 | H4: =SUMIF('Avg Gain RDF DMF'!E:E, ">" & (MaxGain - 12), 'Avg Gain RDF DMF'!L:L) / ((C6-C5)/360*2*PI()) -> 0
B5: Begin at azimuth | C5: 80 | D5: degrees | G5: 18 | H5: =SUMIF('Avg Gain RDF DMF'!E:E, ">" & (MaxGain - 18), 'Avg Gain RDF DMF'!L:L) / ((C6-C5)/360*2*PI()) -> 0
B6: End at azimuth | C6: 280 | D6: degrees | G6: 24 | H6: =SUMIF('Avg Gain RDF DMF'!E:E, ">" & (MaxGain - 24), 'Avg Gain RDF DMF'!L:L) / ((C6-C5)/360*2*PI()) -> 0
G7: Leaking Index | H7: =SUM(H4:H6)/3 -> 0
B9: --- Notes ---
B11: Leaking Index tells how much the antenna pattern leaks to unwanted directions
B12: User can set the azimuth range, default is 80 to 280 degrees
B13: Zenith range is fixed 0 to 90 degrees
B15: The antenna is better when
B16: -smaller proportion of pattern leaks
B17: -any leaking is attenuated more
B19: The percentage of leaking is calculated at three levels; Gmax -12 dB, -18 dB and -24 dB
B20: Leaking index is the average percentage of leaking at these three levels
B22: The user can set the azimuth range un-evenly to support asymmetrical antenna patterns,
B23: such as for example phased systems may show
B24: Maximum Gain direction must be roughly into direction Az=0 to produce correct results
B25: Default values are 80 and 280 degrees.
B27: As a comparison, the DMF calculation uses fixed azimuth 90 to 270 degrees

Sheet Summary of Metrics
A1: Summary of Metrics | M1: =MID(CELL("filename",A1),FIND("[",CELL("filename",A1))+1,FIND("]", CELL("filename",A1))-FIND("[",CELL("filename",A1))-1) -> RX Ant Metrics v17p.xlsm
A3: A new summary row is automatically added each time a data file is read.
A4: Copy/paste data below as desired to a new workbook.
A5: Delete any rows that are no longer needed.
A6: Antenna pattern file name | B6: Gmax dBi | C6: At Azim | D6: At Elev | E6: Gaver dB | F6: RDF dB | G6: Back Gaver dB | H6: DMF dB | I6: QTH Noise Lvl dB | J6: Noise Margin dB | K6: Leaking Index % | L6: Date/Time | M6: Length m | N6: Width m | O6: Height m
A7: 05 Beverage 170m.csv | B7: -7.41 | C7: 0° | D7: 39° | E7: -18.0477446 | F7: 10.6377446 | G7: -24.5913648 | H7: 17.1813648 | I7: 46 | J7: 18.9522554 | K7: 51.39418482 | L7: 43143.9075 | M7: 170 | N7: 2 | O7: 3
A8: 06 Beverage 250m.csv | B8: -4.58 | C8: 0° | D8: 31° | E8: -16.79587463 | F8: 12.21587463 | G8: -24.68700367 | H8: 20.10700367 | I8: 46 | J8: 20.20412537 | K8: 43.2223361 | L8: 43143.90951 | M8: 250 | N8: 2 | O8: 3
A9: 07 Twin Triangle v02.csv | B9: -23.33 | C9: 0° | D9: 26° | E9: -34.4816483 | F9: 11.1516483 | G9: -43.45367055 | H9: 20.12367055 | I9: 46 | J9: 2.518351696 | K9: 41.79008209 | L9: 43143.92444 | M9: 58 | N9: 3 | O9: 12.5
A10: 08 Smaller Twin Triangle v03.csv | B10: -39.91 | C10: 0° | D10: 25° | E10: -51.39947647 | F10: 11.48947647 | G10: -61.69728027 | H10: 21.78728027 | I10: 64 | J10: 3.600523525 | K10: 34.92547177 | L10: 43143.96321 | M10: 25 | N10: 3 | O10: 9.5
A11: 08 Smaller Twin Triangle v03 80m.csv | B11: -23.24 | C11: 0° | D11: 26° | E11: -34.49778368 | F11: 11.25778368 | G11: -43.56516862 | H11: 20.32516862 | I11: 56 | J11: 12.50221632 | K11: 39.47798061 | L11: 43143.97337 | M11: 25 | N11: 3 | O11: 9.5
A12: 10 LIXA proto 201611.csv | B12: -33.46 | C12: 0° | D12: 27° | E12: -43.31648577 | F12: 9.85648577 | G12: -53.31145072 | H12: 19.85145072 | I12: 46 | J12: -6.31648577 | K12: 46.17083666 | L12: 43143.98388 | M12: 22.8 | N12: 3 | O12: 7.8
A13: 10 LIXA proto 201611 80m.csv | B13: -16.99 | C13: 0° | D13: 31° | E13: -26.34588527 | F13: 9.355885266 | G13: -35.84198588 | H13: 18.85198588 | I13: 38 | J13: 2.654114734 | K13: 43.59039275 | L13: 43143.98875 | M13: 22.8 | N13: 3 | O13: 7.8
A14: 11 2x LIRA v4.csv | B14: -25.66 | C14: 0° | D14: 23° | E14: -37.75446478 | F14: 12.09446478 | G14: -55.78714682 | H14: 30.12714682 | I14: 46 | J14: -0.7544647783 | K14: 4.595474596 | L14: 43143.9951 | M14: 83 | N14: 3 | O14: 10.5
A15: 12 Beverage staggered 320m v4.csv | B15: 0.3 | C15: 358° | D15: 27° | E15: -14.4744581 | F15: 14.7744581 | G15: -25.57621986 | H15: 25.87621986 | I15: 46 | J15: 22.5255419 | K15: 15.011298 | L15: 43144.00138 | M15: 350 | N15: 100 | O15: 3
A16: 13 4x LIRA L216 v2.csv | B16: -18.31 | C16: 0° | D16: 19° | E16: -33.13954891 | F16: 14.82954891 | G16: -55.92773131 | H16: 37.61773131 | I16: 46 | J16: 3.860451089 | K16: 0 | L16: 43144.72317 | M16: 216 | N16: 3 | O16: 13
L17: 43145.03669
L18: 2018-02-14T00:53:35
